bitfinex/quotes_ETHUSD_20250223
["timestamp","ask_amount","ask_price","bid_price","bid_amount"]
[1740337963658,5.25,2816.1,2815.7,3.55144]
[1740337963859,5.25,2816.1,2815.8,3.65104073]
[1740337964732,5.25,2816.1,2815.8,0.09966073]
[1740337965069,5.25,2816.1,2815.7,3.5515]
[1740337965270,5.25,2816.1,2815.9,0.09965874]
[1740337965470,5.25,2816.1,2815.8,0.09966073]
[1740337965670,5.25,2816.1,2816.0,0.09965674]
[1740337965834,5.25,2816.1,2816.0,3.65078674]
[1740337966162,5.25,2816.1,2816.0,3.65034815]
[1740337966369,0.8085,2816.5,2816.0,0.89683182]
[1740337966571,4.35901,2816.5,2816.1,3.55089]
[1740337966868,4.62684618,2816.5,2816.1,3.65010616]
[1740337967438,4.62684618,2816.5,2816.1,0.09921616]
[1740337968272,3.55069,2816.4,2816.1,0.09921616]
[1740337969039,3.55069,2816.4,2815.9,3.55119]
[1740337969240,3.55063,2816.4,2815.9,3.55126]
[1740337969441,3.55076,2816.3,2815.9,3.55126]
[1740337969734,3.5512,2816.0,2815.6,0.7698]
[1740337969941,3.55134,2815.9,2815.4,4.32161]
[1740337970876,3.55134,2815.9,2814.8,6.3218821]
[1740337971077,0.55,2815.7,2814.9,4.3223]
[1740337971277,3.55172,2815.6,2815.0,3.5523]
[1740337972079,3.55172,2815.6,2815.2,3.55213]
[1740337973390,4.337971,2815.6,2815.0,6.55232]
[1740337973541,4.337971,2815.6,2814.9,4.32224]
[1740337973542,3.55191,2815.4,2814.9,4.32224]
[1740337973875,4.37811,2815.4,2814.9,4.32224]
[1740337974072,3.55211,2815.3,2814.9,0.7698]
[1740337974237,4.37809,2815.4,2814.9,4.32228]
[1740337974439,0.8262,2815.4,2815.0,3.55233]
[1740337975268,5.25,2815.5,2815.3,3.55192]
[1740337976279,5.25,2815.5,2815.2,3.55213]
[1740337976454,5.25,2815.5,2815.3,3.552]
[1740337976655,5.25,2815.5,2815.2,3.55211]
[1740337977279,5.25,2815.5,2815.3,3.55198]
[1740337977471,5.25,2815.5,2815.2,3.55211]
[1740337978072,5.25,2815.5,2815.2,3.55207]
[1740337978294,0.8262,2815.6,2815.2,7.10415]
[1740337978597,0.8262,2815.6,2815.2,3.55207]
[1740337979500,0.8262,2815.6,2815.2,7.10414]
[1740337980301,0.8262,2815.6,2815.2,3.55207]
[1740337980499,0.8262,2815.6,2815.3,0.0995442]
[1740337980663,0.8262,2815.6,2815.3,3.6515442]
[1740337981005,4.37784,2815.6,2815.4,0.09954221]
[1740337981193,5.72287127,2815.6,2815.2,3.55214]
[1740337981398,0.8262,2815.2,2814.6,7.3082]
[1740337981600,4.37844,2815.2,2814.7,3.55277]
[1740337982618,4.37844,2815.2,2814.2,3.81035]
[1740337982619,0.55,2815.1,2814.5,3.55301]
[1740337982923,3.55246,2815.0,2814.5,3.55301]
[1740337983269,3.55253,2814.9,2814.2,0.7554]
[1740337983464,3.55253,2814.9,2814.3,3.55319]
[1740337983702,3.55253,2814.9,2814.4,3.55309]
[1740337984205,3.55265,2814.8,2814.4,3.55309]
[1740337986411,3.55252,2814.9,2814.4,3.55309]
[1740337987104,3.55266,2814.8,2814.4,3.55309]
[1740337988205,3.55252,2814.9,2814.4,7.10616]
[1740337988396,3.55252,2814.9,2814.4,3.55307]
[1740337989086,3.55266,2814.8,2814.4,3.55307]
[1740337990577,3.55266,2814.8,2814.3,3.55326]
[1740337990778,3.55278,2814.7,2814.3,3.55326]
[1740337991107,3.55278,2814.7,2814.2,4.30874]
[1740337992707,3.55252,2814.9,2814.2,4.30874]
[1740337992887,3.55266,2814.8,2814.4,3.55313]
[1740337993706,3.55266,2814.8,2814.3,3.55322]
[1740337995519,3.55266,2814.8,2814.4,0.09649489]
[1740337996211,4.34402,2814.6,2814.4,0.09649489]
[1740337996506,3.55302,2814.5,2814.1,3.005]
[1740337996672,0.7911,2814.6,2814.5,0.09649289]
[1740337996673,4.344,2814.6,2814.5,0.09649289]
[1740337996877,3.55334,2814.3,2814.1,0.005]
[1740337997303,3.55334,2814.3,2814.2,0.09649888]
[1740337999216,3.55317,2814.4,2814.2,0.09649888]
[1740337999419,3.55309,2814.5,2814.2,0.09649888]
[1740337999619,3.55316,2814.4,2814.2,0.09649888]
[1740338000825,7.10639,2814.4,2814.2,0.09649888]
[1740338001615,3.55328,2814.3,2814.2,0.09649888]
[1740338001922,4.25883082,2814.3,2814.2,0.09649888]
[1740338002895,5.8072299,2814.3,2814.2,0.09649888]
[1740338003097,6.3572299,2814.3,2814.2,0.09649888]
[1740338003296,4.1034,2814.2,2814.1,0.005]
[1740338003697,4.9203,2814.2,2814.1,0.005]
[1740338005727,5.10489576,2814.2,2814.1,0.005]
[1740338005895,6.85843524,2814.2,2814.1,0.005]
[1740338007424,6.67383948,2814.2,2814.1,0.005]
[1740338007619,6.67383948,2814.2,2814.1,0.10177938]
[1740338008020,11.92383948,2814.2,2814.1,0.005]
[1740338008224,6.0669,2814.2,2814.1,0.005]
[1740338008559,8.8034,2814.2,2814.1,0.005]
[1740338009024,9.3534,2814.2,2814.1,0.005]
[1740338009223,9.3534,2814.2,2814.1,0.10177938]
[1740338010912,10.1835,2814.2,2814.1,0.10177938]
[1740338011225,11.90466229,2814.2,2814.1,0.005]
[1740338015442,11.90466229,2814.2,2814.1,0.10211702]
[1740338016641,11.90466229,2814.2,2814.1,0.005]
[1740338016847,11.90466229,2814.2,2814.1,0.7324461]
[1740338017044,11.90466229,2814.2,2814.1,0.82956312]
[1740338018347,10.1835,2814.2,2814.1,0.82956312]
[1740338018535,9.3534,2814.2,2814.1,0.82956312]
[1740338019341,5.25,2814.2,2814.1,0.82956312]
[1740338019955,3.5534,2814.2,2814.1,0.82956312]
[1740338029876,4.25885082,2814.3,2814.1,0.82956312]
[1740338030032,7.1152921,2814.4,2814.1,0.10211702]
[1740338030238,3.5534,2814.2,2814.1,0.10211702]
[1740338030471,3.5534,2814.2,2814.1,0.005]
[1740338030974,3.5534,2814.2,2814.1,0.10210013]
[1740338031774,3.55329,2814.3,2814.1,0.10210013]
[1740338031981,0.7928,2814.4,2814.1,0.10210013]
[1740338032179,3.55316,2814.4,2814.1,0.10210013]
[1740338035186,9.35311,2814.5,2814.1,0.10210013]
[1740338035485,9.35311,2814.5,2814.1,3.65563013]
[1740338036488,9.35311,2814.5,2814.1,0.10210013]
[1740338036695,3.55316,2814.4,2814.1,0.10210013]
[1740338037786,9.35308,2814.5,2814.2,0.7526]
[1740338037954,3.55319,2814.4,2814.2,0.7526]
[1740338038154,3.55319,2814.4,2814.3,0.09803274]
[1740338038376,3.55319,2814.4,2814.2,0.7526]
[1740338038787,3.55319,2814.4,2814.3,0.09803274]
[1740338038990,3.55319,2814.4,2814.2,0.7526]
[1740338039288,5.8,2814.5,2814.3,0.09803274]
[1740338039592,9.35303,2814.5,2814.3,0.09803274]
[1740338039755,9.35303,2814.5,2814.2,0.7526]
[1740338039957,9.35303,2814.5,2814.3,0.0979483]
[1740338040152,9.35303,2814.5,2814.2,0.7526]
[1740338040489,3.55316,2814.4,2814.3,0.0979483]
[1740338040792,3.55316,2814.4,2814.2,0.7526]
[1740338040993,3.55316,2814.4,2814.3,0.09793986]
[1740338041289,5.8,2814.5,2814.2,0.7526]
[1740338041583,10.69434907,2814.5,2814.3,0.09793986]
[1740338041893,10.69434907,2814.5,2814.2,0.7526]
[1740338042269,10.69434907,2814.5,2814.3,0.09793986]
[1740338042466,10.69434907,2814.5,2814.1,3.5585]
[1740338042669,10.69434907,2814.5,2814.4,0.09793786]
[1740338042877,3.55318,2814.4,2814.1,0.005]
[1740338043060,1.34131907,2814.3,2814.1,0.005]
[1740338046560,3.55318,2814.4,2814.1,0.005]
[1740338046882,10.69435907,2814.5,2814.1,3.55848]
[1740338047889,7.14131907,2814.5,2814.2,3.55339]
[1740338049975,7.14131907,2814.5,2814.1,3.55852]
[1740338050584,7.14131907,2814.5,2814.1,3.55845]
[1740338050903,7.14131907,2814.5,2814.1,7.1119]
[1740338051198,7.14131907,2814.5,2814.1,3.55845]
[1740338051579,7.14131907,2814.5,2814.1,7.11191]
[1740338051890,7.14131907,2814.5,2814.1,3.55845]
[1740338052091,10.69442907,2814.5,2814.1,0.005]
[1740338052298,3.55317,2814.4,2814.1,0.005]
[1740338052599,11.96503515,2814.5,2814.1,0.005]
[1740338052896,8.41199515,2814.5,2814.1,0.005]
[1740338053115,11.96507515,2814.5,2814.1,0.005]
[1740338053272,3.55316,2814.4,2814.1,0.005]
[1740338053649,1.34131907,2814.3,2814.1,0.005]
[1740338054667,4.1034,2814.2,2814.1,0.005]
[1740338054866,10.1446,2814.2,2814.1,0.005]
[1740338055386,13.1446,2814.2,2814.1,0.005]
[1740338056501,14.48591907,2814.2,2814.1,1e-05]
[1740338056701,15.09067383,2814.2,2814.1,1e-05]
[1740338056891,17.22175701,2814.2,2814.1,1e-05]
[1740338057091,15.88043794,2814.2,2814.1,1e-05]
[1740338057303,17.22175701,2814.2,2814.1,1e-05]
[1740338057716,18.64924222,2814.2,2814.1,1e-05]
[1740338058289,18.22908557,2814.2,2814.1,1e-05]
[1740338058487,18.92511087,2814.2,2814.1,1e-05]
[1740338058983,18.37511087,2814.2,2814.1,1e-05]
[1740338059309,18.37511087,2814.2,2814.1,0.09542158]
[1740338059481,18.92511087,2814.2,2814.1,1e-05]
[1740338063895,18.37511087,2814.2,2814.1,1e-05]
[1740338064500,18.92511087,2814.2,2814.1,1e-05]
[1740338070528,21.61332279,2814.2,2814.1,1e-05]
[1740338071035,21.86932279,2814.2,2814.1,1e-05]
[1740338071234,19.18111087,2814.2,2814.1,1e-05]
[1740338073034,18.37511087,2814.2,2814.1,1e-05]
[1740338073236,15.45282769,2814.2,2814.1,0.09630818]
[1740338073405,8.89942769,2814.2,2814.1,1e-05]
[1740338073598,12.45282769,2814.2,2814.1,0.09630818]
[1740338074804,13.00282769,2814.2,2814.1,0.09630818]
[1740338075207,13.00282769,2814.2,2814.1,1e-05]
[1740338075523,14.65843946,2814.2,2814.1,1e-05]
[1740338075925,15.48423946,2814.2,2814.1,1e-05]
[1740338078350,18.48423946,2814.2,2814.1,1e-05]
[1740338078922,15.48423946,2814.2,2814.1,1e-05]
[1740338079754,14.10843946,2814.2,2814.1,1e-05]
[1740338079913,12.45282769,2814.2,2814.1,1e-05]
[1740338080350,12.45282769,2814.2,2814.1,0.09621525]
[1740338080550,12.26822958,2814.2,2814.1,1e-05]
[1740338080748,12.26822958,2814.2,2814.1,0.09621525]
[1740338080950,12.81822958,2814.2,2814.1,0.09621525]
[1740338081263,12.26822958,2814.2,2814.1,0.09621525]
[1740338084741,12.81822958,2814.2,2814.1,0.09621525]
[1740338084960,14.45538154,2814.2,2814.1,0.09621525]
[1740338085120,14.45538154,2814.2,2814.1,1e-05]
[1740338085458,6.4960253,2814.2,2814.1,1e-05]
[1740338085641,10.0494253,2814.2,2814.1,0.09598718]
[1740338092067,10.0494253,2814.2,2814.1,0.80541296]
[1740338093801,10.8033253,2814.2,2814.1,0.80541296]
[1740338094154,13.8033253,2814.2,2814.1,5.78e-06]
[1740338094354,13.8033253,2814.2,2813.3,0.7689]
[1740338094355,3.55439,2813.5,2813.3,0.7689]
[1740338094590,4.10441,2813.4,2813.3,0.7689]
[1740338094775,0.55,2813.4,2813.3,0.7689]
[1740338094973,0.55,2813.4,2813.3,0.86469045]
[1740338095462,0.55,2813.4,2813.3,0.7689]
[1740338095857,0.55,2813.4,2813.3,0.86469045]
[1740338097166,4.10441,2813.4,2813.3,0.86469045]
[1740338101061,0.55,2813.5,2813.3,0.86469045]
[1740338101257,0.55,2813.4,2813.3,0.86469045]
[1740338102073,4.10441,2813.4,2813.3,0.86469045]
[1740338102675,0.55,2813.4,2813.3,0.86469045]
[1740338103292,0.81066784,2813.4,2813.3,0.86469045]
[1740338104007,5.25,2813.9,2813.3,0.86469045]
[1740338104208,5.25,2813.9,2813.7,0.7962]
[1740338104710,5.25,2813.9,2813.8,0.09606763]
[1740338105406,8.80378,2813.9,2813.8,0.09606763]
[1740338105563,9.35378,2813.9,2813.8,0.09606763]
[1740338106098,9.35378,2813.9,2813.7,0.7962]
[1740338106365,9.35378,2813.9,2813.8,0.09594938]
[1740338107166,5.25,2813.9,2813.8,3.64985938]
[1740338107345,5.25,2813.9,2813.8,0.09594938]
[1740338108242,9.87878,2813.9,2813.8,0.09594938]
[1740338108443,9.87878,2813.9,2813.3,0.8297]
[1740338108610,0.55,2813.6,2813.3,0.8297]
[1740338111525,0.55,2813.6,2813.3,4.38423]
[1740338111844,0.55,2813.7,2813.4,3.5544]
[1740338112147,5.25,2813.9,2813.5,0.7946]
[1740338112315,5.25,2813.9,2813.5,4.34885]
[1740338114628,8.80386,2813.9,2813.5,0.7946]
[1740338114965,3.31880428,2813.8,2813.1,4.34931]
[1740338115108,6.32309428,2813.5,2813.1,0.7946]
[1740338115510,6.32309428,2813.5,2813.2,0.09227826]
[1740338115943,3.55448,2813.4,2813.2,0.09227826]
[1740338116146,4.92314,2813.3,2813.2,0.09227826]
[1740338116348,3.55517,2812.8,2812.7,0.7946]
[1740338116712,3.55517,2812.8,2812.7,0.88692204]
[1740338117417,3.55517,2812.8,2812.7,0.09232204]
[1740338117636,3.55517,2812.8,2812.5,0.7946]
[1740338117922,2.76880428,2813.0,2812.6,0.09232404]
[1740338118273,3.55482,2813.1,2812.7,0.7946]
[1740338118555,0.55,2813.1,2812.7,0.88692204]
[1740338119351,0.55,2813.1,2812.7,4.44221204]
[1740338120233,0.55,2813.1,2812.8,3.55516]
[1740338120555,0.55,2813.1,2812.9,0.0927911]
[1740338120931,0.81333117,2813.1,2812.9,0.0927911]
[1740338121459,0.81333117,2813.1,2812.7,4.34989]
[1740338121758,0.81333117,2813.1,2813.0,0.0927722]
[1740338121958,0.81333117,2813.1,2812.7,4.34989]
[1740338122159,0.81333117,2813.1,2813.0,0.09276375]
[1740338122359,0.81333117,2813.1,2812.7,4.34989]
[1740338122560,0.81333117,2813.1,2813.0,0.09276375]
[1740338122762,0.81333117,2813.1,2812.7,4.34989]
[1740338122958,0.81333117,2813.1,2813.0,0.09276375]
[1740338123132,0.81333117,2813.1,2812.7,4.34989]
[1740338123454,0.81333117,2813.1,2813.0,0.09276375]
[1740338123659,0.81333117,2813.1,2812.7,4.34989]
[1740338123848,0.81333117,2813.1,2812.8,0.09276775]
[1740338124049,4.36812117,2813.1,2813.0,0.09276375]
[1740338124247,4.36812117,2813.1,2812.7,4.34989]
[1740338124248,5.77177796,2813.1,2812.7,4.34989]
[1740338124453,0.81333117,2813.1,2813.0,0.09274686]
[1740338124635,0.81333117,2813.1,2812.7,4.34984]
[1740338125047,0.81333117,2813.1,2812.8,0.09317321]
[1740338125454,5.25,2813.2,2812.9,3.55496]
[1740338125839,5.25,2813.2,2813.0,0.09316921]
[1740338126375,5.25,2813.2,2813.1,4.34939]
[1740338126552,5.25,2813.2,2813.1,0.7946]
[1740338126871,0.82056584,2813.3,2813.1,0.88777566]
[1740338127234,4.10467,2813.2,2812.9,0.8114]
[1740338127440,3.5551,2812.9,2812.4,4.367]
[1740338127976,3.5551,2812.9,2812.5,0.09310317]
[1740338129686,3.5551,2812.9,2812.5,3.64863317]
[1740338131250,0.55,2813.0,2812.7,3.55526]
[1740338131457,0.55,2813.0,2812.8,0.09306338]
[1740338132142,4.79234043,2813.0,2812.8,0.09306338]
[1740338132444,4.79234043,2813.0,2812.5,3.55554]
[1740338132670,4.79234043,2813.0,2812.9,0.16815239]
[1740338132986,10.04234043,2813.0,2812.6,0.1681664]
[1740338133152,3.55511,2812.9,2812.6,0.1681664]
[1740338133352,3.55517,2812.8,2812.4,4.36705]
[1740338133584,6.87397428,2812.8,2812.7,0.16816173]
[1740338133799,8.58638375,2812.8,2812.4,0.8114]
[1740338133947,8.58638375,2812.8,2812.7,0.16816173]
[1740338134147,8.58638375,2812.8,2812.4,0.8114]
[1740338134346,8.58638375,2812.8,2812.7,0.16816173]
[1740338134846,3.55534,2812.7,2812.2,4.32477]
[1740338135048,1.00691365,2812.7,2812.2,0.7689]
[1740338135290,7.08215428,2812.5,2811.9,4.32511]
[1740338135578,7.08215428,2812.5,2811.5,3.81282]
[1740338135579,5.25,2812.7,2812.2,0.7689]
[1740338135770,6.0077,2812.9,2812.5,3.55549]
[1740338136147,3.52650428,2813.2,2812.8,3.55512]
[1740338137366,2.76880428,2813.2,2812.8,4.32399]
[1740338137591,2.76880428,2813.2,2812.8,0.7689]
[1740338137882,6.32353428,2813.2,2812.8,0.7689]
[1740338138344,3.55499,2813.0,2812.8,0.7689]
[1740338138548,7.11002,2813.0,2812.5,4.32436]
[1740338138865,3.55499,2813.0,2812.5,4.32436]
[1740338139485,4.10511,2812.9,2812.5,0.7689]
[1740338139781,0.55,2812.9,2812.6,3.55539]
[1740338139984,0.55,2812.9,2812.5,4.32444]
[1740338141895,5.25,2813.1,2812.5,1.556915]
[1740338142100,5.25,2813.1,2812.8,3.55511]
[1740338143389,5.25,2813.1,2812.6,3.55533]
[1740338143600,8.8048,2813.1,2812.6,3.55533]
[1740338143769,8.8048,2813.1,2812.6,7.11068]
[1740338144026,5.25,2813.1,2812.7,3.55524]
[1740338145454,5.25,2813.1,2812.8,0.16868094]
[1740338146152,5.25,2813.1,2812.8,3.55517]
[1740338146335,5.25,2813.1,2812.9,0.16849038]
[1740338147645,6.32348428,2813.2,2812.9,0.16849038]
[1740338147852,3.55485,2813.1,2812.9,0.16849038]
[1740338148152,3.55485,2813.1,2812.6,3.55533]
[1740338148453,3.55485,2813.1,2812.7,0.16849971]
[1740338151043,7.96704571,2813.2,2812.7,0.16849971]
[1740338151388,3.55494,2813.0,2812.7,0.16849971]
[1740338151851,3.55485,2813.1,2812.7,3.72378971]
[1740338152823,3.55485,2813.1,2812.8,0.7519]
[1740338153024,0.7518,2813.0,2812.7,3.72378971]
[1740338153248,0.7518,2813.0,2812.9,0.16848193]
[1740338153454,0.7518,2813.0,2812.8,0.1684866]
[1740338153620,0.7518,2813.0,2812.9,0.16848193]
[1740338153959,0.7518,2813.0,2812.7,3.55529]
[1740338154134,0.7518,2813.0,2812.8,0.1684866]
[1740338155541,3.55485,2813.1,2812.8,0.1684866]
[1740338156162,4.30653,2813.2,2812.8,0.1684866]
[1740338157484,5.94951943,2813.2,2812.8,0.1684866]
[1740338157788,5.25,2813.3,2812.8,0.9203866]
[1740338157939,5.25,2813.3,2813.1,3.55472]
[1740338158138,5.25,2813.3,2813.2,0.16846792]
[1740338159584,5.25,2813.3,2813.1,3.55472]
[1740338160588,3.55401,2813.8,2813.2,0.7519]
[1740338160589,0.7518,2813.8,2813.2,0.7519]
[1740338160751,3.55434,2813.5,2812.7,0.7519]
[1740338160959,7.07502428,2813.4,2812.9,3.55498]
[1740338161161,7.07502428,2813.4,2813.0,0.16824069]
[1740338161673,7.07539428,2813.1,2813.0,0.16824069]
[1740338161875,13.44340071,2813.1,2813.0,0.16824069]
[1740338162078,13.44340071,2813.1,2812.4,4.30746]
[1740338162079,3.55505,2812.9,2812.4,4.30746]
[1740338162477,3.55518,2812.8,2812.5,0.15654257]
[1740338162700,4.10498,2813.0,2812.5,0.15654257]
[1740338162909,4.10498,2813.0,2812.5,3.71202257]
[1740338163973,0.55,2813.0,2812.5,3.71202257]
[1740338164205,3.55505,2812.9,2812.5,0.15654257]
[1740338164975,0.55,2813.0,2812.5,0.15654257]
[1740338165169,4.10492,2813.0,2812.5,3.71208257]
[1740338166609,2.3321731,2813.0,2812.6,3.55536]
[1740338166912,2.3321731,2813.0,2812.5,3.71208257]
[1740338166913,5.8871031,2813.0,2812.5,3.71201257]
[1740338167114,5.25,2813.1,2812.9,3.55496]
[1740338167481,5.25,2813.1,2813.0,0.1567896]
[1740338167693,9.58385,2813.3,2813.0,0.1567896]
[1740338168693,9.84923087,2813.3,2813.0,0.1567896]
[1740338168894,9.84923087,2813.3,2812.8,4.38661]
[1740338169094,1.26180352,2813.2,2813.1,0.15678493]
[1740338169300,1.26180352,2813.2,2812.8,4.38661]
[1740338169501,9.84923087,2813.3,2813.1,0.15678493]
[1740338169726,9.84923087,2813.3,2812.8,4.38661]
[1740338169887,9.84923087,2813.3,2813.2,0.15678026]
[1740338170092,9.84923087,2813.3,2812.8,4.38661]
[1740338170319,9.84923087,2813.3,2813.2,0.15678026]
[1740338170615,11.46647239,2813.3,2813.2,0.15678026]
[1740338170822,11.46647239,2813.3,2812.9,3.55504]
[1740338171195,11.46647239,2813.3,2813.0,0.1567896]
[1740338172921,7.91192239,2813.3,2813.0,0.1567896]
[1740338173782,7.91192239,2813.3,2813.0,3.7116796]
[1740338174005,5.25,2813.3,2813.0,0.1567896]
[1740338174212,5.25,2813.3,2813.2,3.55467]
[1740338174410,5.25,2813.3,2813.2,3.71130659]
[1740338177386,7.37121771,2813.6,2813.2,3.71130659]
[1740338177728,7.10447428,2813.6,2813.2,3.71130659]
[1740338182574,4.33567,2813.6,2813.2,4.50688659]
[1740338184046,4.33567,2813.6,2813.2,4.35025]
[1740338184256,4.33567,2813.6,2813.3,0.1562264]
[1740338184456,5.67570653,2813.6,2813.3,0.1562264]
[1740338184751,5.67570653,2813.6,2813.2,4.35025]
[1740338185037,5.67570653,2813.6,2813.3,0.1562264]
[1740338185249,5.67570653,2813.6,2813.2,4.35025]
[1740338185409,5.67570653,2813.6,2813.4,0.15622173]
[1740338185614,5.67570653,2813.6,2813.2,4.35025]
[1740338185934,5.67570653,2813.6,2813.3,0.1562264]
[1740338186332,5.67570653,2813.6,2813.2,4.35025]
[1740338186639,5.67570653,2813.6,2813.3,0.1562264]
[1740338186933,2.12153653,2813.6,2813.3,0.1562264]
[1740338187134,2.12153653,2813.6,2813.2,4.35025]
[1740338187330,2.12153653,2813.6,2813.4,0.15622173]
[1740338187534,2.12153653,2813.6,2813.3,0.1562264]
[1740338187696,3.50335398,2813.9,2813.2,4.35025]
[1740338187697,6.7712497,2813.9,2813.5,0.15621706]
[1740338187901,10.14054,2813.9,2813.4,3.71058173]
[1740338188101,10.14054,2813.9,2813.4,3.55436]
[1740338188335,11.78684843,2813.9,2813.5,0.15616638]
[1740338188914,15.34070843,2813.9,2813.5,0.15616638]
[1740338189115,11.78684843,2813.9,2813.5,0.15616638]
[1740338189739,11.78684843,2813.9,2813.5,3.71043638]
[1740338189916,5.25,2813.9,2813.5,3.71043638]
[1740338190101,5.51939777,2813.9,2813.6,4.31445]
[1740338190301,5.25,2813.9,2813.6,4.31445]
[1740338190506,8.80391,2813.9,2813.7,0.15615704]
[1740338191041,8.80391,2813.9,2813.4,4.31472]
[1740338191042,9.35391,2813.9,2813.8,0.15615238]
[1740338191245,10.644661,2813.9,2813.8,0.15615238]
[1740338191405,10.644661,2813.9,2813.4,4.31472]
[1740338191604,10.644611,2813.9,2813.5,0.15616638]
[1740338191801,5.25,2813.9,2813.5,3.71034638]
[1740338192044,5.25,2813.9,2813.7,3.55397]
[1740338192243,5.25,2813.9,2813.8,3.55391]
[1740338192417,4.30928,2814.5,2814.0,3.55357]
[1740338192618,3.55316,2814.4,2814.1,0.15596945]
[1740338192851,0.786244,2814.3,2814.1,0.15596945]
[1740338193019,3.5534,2814.2,2814.1,0.15596945]
[1740338193221,4.339624,2814.3,2813.8,4.3448]
[1740338193416,4.339624,2814.3,2813.9,0.15597878]
[1740338194447,4.339624,2814.3,2813.9,3.70972878]
[1740338194644,0.786244,2814.3,2813.9,3.70967878]
[1740338194832,3.55316,2814.4,2813.9,3.70967878]
[1740338195221,4.56973543,2814.5,2814.0,3.55358]
[1740338195427,4.56973543,2814.5,2814.1,0.15596945]
[1740338196644,4.56973543,2814.5,2814.1,3.70948945]
[1740338199364,4.30923,2814.5,2814.1,3.70948945]
[1740338200064,5.25,2814.6,2814.3,3.55327]
[1740338200267,5.25,2814.6,2814.2,4.34434]
[1740338200476,5.25,2814.6,2814.4,0.15506867]
[1740338200647,6.205905,2814.6,2814.3,0.15507334]
[1740338200845,5.25,2814.6,2814.5,0.15506401]
[1740338201063,3.55283,2814.7,2814.4,0.15506867]
[1740338201263,3.55283,2814.7,2814.5,0.15485293]
[1740338201567,3.55283,2814.7,2814.3,3.5532]
[1740338201770,3.55283,2814.7,2814.4,0.1548576]
[1740338202073,4.788379,2814.7,2814.4,0.1548576]
[1740338205535,4.788379,2814.7,2814.5,0.791]
[1740338205972,4.788379,2814.7,2814.6,0.15484827]
[1740338206573,4.788379,2814.7,2814.3,4.3442]
[1740338206873,3.55283,2814.7,2814.4,0.1548576]
[1740338209340,7.10567,2814.7,2814.4,0.1548576]
[1740338209569,3.55283,2814.7,2814.4,0.1548576]
[1740338210365,7.10569,2814.7,2814.4,0.1548576]
[1740338210555,3.55283,2814.7,2814.4,0.1548576]
[1740338210956,9.06510756,2814.8,2814.4,0.1548576]
[1740338211374,3.55277,2814.7,2814.4,0.1548576]
[1740338212255,3.55277,2814.7,2814.4,0.1548576]
[1740338215959,3.55292,2814.6,2814.4,0.1548576]
[1740338216161,4.37112,2814.5,2814.4,0.1548576]
[1740338216346,4.37112,2814.5,2814.0,0.8049]
[1740338216543,3.55333,2814.3,2814.1,0.15445793]
[1740338217452,3.5534,2814.2,2814.1,0.15445793]
[1740338217685,3.55333,2814.3,2814.1,0.15445793]
[1740338218567,4.89447241,2814.2,2814.1,0.15445793]
[1740338218882,3.55393,2813.8,2813.5,0.8049]
[1740338219140,4.89500241,2813.8,2813.5,0.8049]
[1740338219682,3.55393,2813.8,2813.5,0.8049]
[1740338220413,3.55391,2813.8,2813.6,0.15455723]
[1740338222213,3.55397,2813.8,2813.6,0.15455723]
[1740338222413,7.10795,2813.8,2813.6,0.15455723]
[1740338222615,3.55397,2813.8,2813.6,0.15455723]
[1740338223910,3.55403,2813.7,2813.6,0.15455723]
[1740338224227,3.55435,2813.5,2813.2,0.8049]
[1740338224431,3.55435,2813.5,2813.3,0.15457123]
[1740338224724,7.10871,2813.5,2813.2,0.8049]
[1740338224926,3.55435,2813.5,2813.4,0.15456657]
[1740338225129,4.37251,2813.4,2813.3,0.15457123]
[1740338225440,3.55511,2812.9,2812.6,0.8049]
[1740338226005,0.55,2813.3,2812.7,3.55524]
[1740338226207,3.55467,2813.2,2812.6,4.36032]
[1740338226947,3.55483,2813.1,2812.6,4.36032]
[1740338227533,3.55483,2813.1,2812.7,3.55529]
[1740338227732,3.55458,2813.3,2812.8,3.55508]
[1740338227939,3.55455,2813.3,2812.8,3.55508]
[1740338228443,9.62263,2813.4,2812.9,3.55501]
[1740338228746,3.55454,2813.3,2812.9,3.55499]
[1740338228905,9.62263,2813.4,2812.9,3.55499]
[1740338229105,3.55464,2813.3,2812.8,3.55516]
[1740338230250,3.55464,2813.3,2812.6,4.36027]
[1740338230251,3.55481,2813.1,2812.6,4.36027]
[1740338230457,3.55475,2813.2,2812.6,0.8049]
[1740338230748,3.55475,2813.2,2812.6,4.3603]
[1740338230749,3.5549,2813.1,2812.6,4.3603]
[1740338232033,3.55475,2813.2,2812.6,0.8049]
[1740338232226,3.55481,2813.1,2812.6,4.36023]
[1740338234759,3.55494,2813.0,2812.6,4.36023]
[1740338234920,3.55494,2813.0,2812.6,0.8049]
[1740338235519,4.36534,2813.0,2812.7,0.15099551]
[1740338236350,3.55494,2813.0,2812.7,0.15099551]
[1740338237142,3.555,2813.0,2812.7,0.15099551]
[1740338238860,3.55479,2813.1,2812.7,0.15099551]
[1740338241593,5.25,2813.4,2813.2,3.5546]
[1740338241753,3.55409,2813.7,2813.2,3.5546]
[1740338241949,3.55409,2813.7,2813.3,0.1509675]
[1740338242152,6.0604,2813.9,2813.4,0.7674]
[1740338242358,5.25,2813.9,2813.6,3.55408]
[1740338242667,5.25,2813.9,2813.7,0.15084746]
[1740338242874,5.25,2813.9,2813.4,0.7674]
[1740338243026,5.25,2813.9,2813.8,0.15084279]
[1740338243226,0.55,2814.1,2813.8,0.15084279]
[1740338243464,9.61388,2814.2,2813.7,7.10786]
[1740338243778,3.55378,2813.9,2813.8,0.15084279]
[1740338244104,3.55378,2813.9,2813.4,4.3218]
[1740338244277,3.55378,2813.9,2813.8,0.15084279]
[1740338244444,0.710755,2813.9,2813.6,3.55414]
[1740338244651,0.55,2814.1,2813.7,0.15084746]
[1740338245973,5.25,2814.2,2813.8,0.7674]
[1740338246139,5.25,2814.2,2813.7,3.70479746]
[1740338246334,8.80341,2814.2,2813.7,3.55395]